fUST/lending_fUST_20240703
["ID","MTS","AMOUNT","RATE_DAILY","PERIOD"]
[330943034,1719957052013,-1070.12,0.00015705,2]
[330943035,1719957052022,-613.62,0.00015705,2]
[330943036,1719957052031,-500.0,0.00015705,2]
[330943037,1719957052040,-624.69,0.00015705,2]
[330943038,1719957052050,-844.58,0.00015705,2]
[330943039,1719957052059,-500.0,0.00015705,2]
[330943040,1719957052068,-500.0,0.00015705,2]
[330943041,1719957052077,-1008.73,0.00015705,2]
[330943042,1719957052086,-500.0,0.00015706,2]
[330943043,1719957052096,-500.0,0.00015706,2]
[330943044,1719957052105,-3230.21,0.0001571,2]
[330943045,1719957052114,-1685.93,0.0001571,2]
[330943046,1719957052151,-5469.71,0.0001571,2]
[330943047,1719957052161,-1266.06,0.0001571,2]
[330943048,1719957052172,-915.62,0.0001571,2]
[330943049,1719957052181,-1007.22,0.0001571,2]
[330943050,1719957052191,-2456.13952597,0.0001571,2]
[330943051,1719957052557,273.37336231,9.9e-05,2]
[330943052,1719957054402,193.75,0.00010959,2]
[330943053,1719957057933,249.33136661,9.9e-05,2]
[330943054,1719957084790,250.0,0.00013427,2]
[330943055,1719957089666,309.61295905,9.999e-05,2]
[330943056,1719957091516,155.42120143,9.999e-05,2]
[330943057,1719957101955,179.31856213,0.0001,2]
[330943058,1719957102919,209.72130719,9.999e-05,2]
[330943059,1719957104524,221.51902791,9.999e-05,2]
[330943060,1719957105552,521.58924025,9.999e-05,7]
[330943061,1719957105825,155.38745488,9.999e-05,2]
[330943062,1719957106572,517.53063591,9.999e-05,2]
[330943063,1719957107486,154.86836189,9.999e-05,2]
[330943064,1719957108380,303.28784189,9.999e-05,2]
[330943065,1719957111245,238.52636184,9.999e-05,2]
[330943066,1719957112426,174.55715225,9.999e-05,2]
[330943067,1719957112617,179.77136505,9.999e-05,2]
[330943068,1719957112647,531.82036901,9.999e-05,2]
[330943069,1719957113421,176.26343742,9.999e-05,2]
[330943070,1719957113687,318.18757632,9.999e-05,2]
[330943071,1719957115303,188.4593867,0.00013241,2]
[330943072,1719957116588,220.31857984,9.999e-05,2]
[330943073,1719957116670,239.90689287,9.999e-05,2]
[330943074,1719957116994,818.39219299,9.999e-05,2]
[330943075,1719957118773,303.36264095,9.999e-05,2]
[330943076,1719957119623,843.72830462,9.999e-05,2]
[330943077,1719957121345,164.70099388,9.999e-05,2]
[330943078,1719957123802,272.31604282,9.999e-05,2]
[330943079,1719957124229,159.91559306,9.999e-05,2]
[330943080,1719957124307,2131.93815612,0.0001212,2]
[330943081,1719957125330,209.0614715,9.999e-05,2]
[330943082,1719957126507,154.86836189,9.999e-05,2]
[330943083,1719957128778,565.7116958,9.999e-05,2]
[330943084,1719957129651,154.86836189,9.999e-05,2]
[330943085,1719957129689,5907.63831068,0.0001212,2]
[330943086,1719957130095,789.60606317,0.00014,2]
[330943087,1719957130715,525.021528,9.999e-05,2]
[330943088,1719957131139,1894.78852527,0.0001212,2]
[330943089,1719957131649,154.86836189,9.999e-05,2]
[330943090,1719957132288,154.86836189,9.999e-05,2]
[330943091,1719957132402,155.24801441,9.999e-05,2]
[330943092,1719957133040,2100.92504791,9.999e-05,2]
[330943093,1719957134622,319.53677074,9.999e-05,2]
[330943094,1719957134957,270.83628217,9.999e-05,2]
[330943095,1719957137984,1915.84372673,0.0001212,2]
[330943096,1719957138015,155.02908324,0.0001212,2]
[330943097,1719957138465,154.86836189,9.999e-05,2]
[330943098,1719957139250,207.45524428,0.0001212,2]
[330943099,1719957142426,16234.89449455,9.999e-05,2]
[330943100,1719957144434,1314.54177726,0.0001212,2]
[330943101,1719957144844,155.51402623,9.999e-05,2]
[330943102,1719957144926,16234.89449455,9.999e-05,2]
[330943103,1719957148113,179.77136505,0.0001212,2]
[330943104,1719957149629,843.72830462,9.999e-05,2]
[330943105,1719957152290,364.20305996,0.0001212,2]
[330943106,1719957152880,1915.84372673,0.0001212,2]
[330943107,1719957153447,236.28896858,0.0001212,2]
[330943108,1719957154068,177.12524256,0.0001212,2]
[330943109,1719957155552,521.58924025,0.0001212,7]
[330943110,1719957156581,292.47967053,9.999e-05,2]
[330943111,1719957159196,3129.31523282,0.0001212,4]
[330943112,1719957159476,818.39219299,0.0001212,2]
[330943113,1719957164652,1330.44466547,0.0001212,2]
[330943114,1719957166178,239.90689287,0.0001212,2]
[330943115,1719957169831,154.86836189,0.0001212,2]
[330943116,1719957171068,529.4387043,0.0001212,2]
[330943117,1719957171713,195.61831467,0.0001212,2]
[330943118,1719957173073,1894.78852527,0.0001212,2]
[330943119,1719957173742,2752.66460358,0.0001212,2]
[330943120,1719957174123,173.16918036,0.0001212,2]
[330943121,1719957174836,155.51402623,9.999e-05,2]
[330943122,1719957177098,789.60606317,0.00014,2]
[330943123,1719957177316,2131.93815612,0.0001212,2]
[330943124,1719957177830,219.7809907,0.0001212,2]
[330943125,1719957178992,193.78719244,0.0001212,2]
[330943126,1719957180545,2100.92504791,0.0001212,2]
[330943127,1719957182037,15077.00419117,0.0001212,2]
[330943128,1719957182676,155.67005517,0.0001212,2]
[330943129,1719957184342,492.19766955,9.999e-05,2]
[330943131,1719957184657,5907.63831068,0.0001212,2]
[330943132,1719957188470,230.07387011,0.0001212,2]
[330943133,1719957189131,476.49382271,0.0001212,2]
[330943134,1719957192056,521.58924025,0.0001212,7]
[330943135,1719957192876,1915.84372673,0.0001212,2]
[330943136,1719957193139,179.77136505,0.0001212,2]
[330943137,1719957194349,525.021528,0.0001212,2]
[330943138,1719957194393,3129.31523282,0.0001212,4]
[330943139,1719957194425,292.47967053,0.0001212,2]
[330943140,1719957195267,243.63904316,9.999e-05,2]
[330943141,1719957195526,724.71412204,9.999e-05,2]
[330943142,1719957199125,597.95617303,9.999e-05,2]
[330943143,1719957199441,1314.54177726,0.0001212,2]
[330943144,1719957202092,203.23522038,0.0001212,2]
[330943145,1719957204624,1330.44466547,0.0001212,2]
[330943146,1719957207483,818.39219299,0.0001212,2]
[330943147,1719957209072,1894.78852527,0.0001212,2]
[330943148,1719957209159,239.90689287,0.0001212,2]
[330943150,1719957217215,157.2682199,0.0001212,2]
[330943151,1719957217334,155.51402623,0.0001212,2]
[330943152,1719957218829,257.53576917,0.0001212,2]
[330943153,1719957222358,413.87220254,0.0001212,2]
[330943154,1719957222764,1434.13825847,0.0001212,2]
[330943155,1719957223999,199.83014591,0.0001212,2]
[330943156,1719957224730,3077.87955987,0.0001212,2]
[330943157,1719957230234,789.60606317,0.00014,2]
[330943158,1719957231107,529.4387043,0.0001212,2]
[330943159,1719957238408,154.99214517,0.0001212,2]
[330943160,1719957240975,154.86836189,9.999e-05,2]
[330943161,1719957255624,661.12832609,9.999e-05,2]
[330943162,1719957255701,934.12399024,9.999e-05,2]
[330943163,1719957273771,403.18669574,9.999e-05,2]
[330943164,1719957284594,154.86836189,9.999e-05,2]
[330943165,1719957290182,155.37362925,9.999e-05,2]
[330943166,1719957290405,154.86836189,9.999e-05,2]
[330943167,1719957291002,309.6439095,9.999e-05,2]
[330943168,1719957291097,789.60606317,0.00014,2]
[330943169,1719957295530,724.71412204,9.999e-05,2]
[330943170,1719957298096,932.42737048,0.0001212,2]
[330943171,1719957299644,3077.87955987,0.0001212,2]
[330943172,1719957299975,182.5470397,9.999e-05,2]
[330943173,1719957300463,154.86836189,0.0001212,2]
[330943174,1719957301041,196.44680959,9.999e-05,2]
[330943175,1719957301264,523.33913778,9.999e-05,2]
[330943176,1719957301343,402.16827863,9.999e-05,2]
[330943177,1719957302834,492.19766955,9.999e-05,2]
[330943178,1719957303082,2100.92504791,9.999e-05,2]
[330943179,1719957303316,458.54129141,9.999e-05,2]
[330943180,1719957303590,292.35460004,9.999e-05,2]
[330943181,1719957304728,300.38885633,9.999e-05,2]
[330943182,1719957307316,2131.93815612,0.0001212,2]
[330943183,1719957312815,195.69863572,9.999e-05,2]
[330943184,1719957318327,403.18669574,0.0001212,2]
[330943185,1719957318597,154.86836189,9.999e-05,2]
[330943186,1719957322480,701.9240243,0.00013061,2]
[330943187,1719957323819,195.69863572,9.999e-05,2]
[330943189,1719957329651,155.80568734,0.0001,2]
[330943190,1719957330783,3642.48546166,0.0001212,2]
[330943191,1719957333115,154.86836189,0.0001212,2]
[330943192,1719957337726,277.90091977,0.0001212,2]
[330943193,1719957338915,245.9049477,0.0001212,2]
[330943194,1719957340040,724.71412204,0.0001212,2]
[330943195,1719957341449,395.57474371,0.0001212,2]
[330943196,1719957343074,4544.9606898,0.00013958,2]
[330943197,1719957348640,523.33913778,0.0001212,2]
[330943198,1719957358068,900.34233453,0.0001212,2]
[330943199,1719957358280,403.18669574,0.0001212,2]
[330943200,1719957360329,195.01156786,0.0001212,2]
[330943201,1719957360570,529.4387043,9.999e-05,2]
[330943202,1719957361235,402.16827863,0.0001212,2]
[330943203,1719957363983,182.5470397,0.0001212,2]
[330943204,1719957375967,374.40487559,9.999e-05,2]
[330943205,1719957376100,290.75470463,0.0001212,2]
[330943206,1719957380574,421.13130419,9.999e-05,7]
[330943207,1719957381096,154.86836189,0.0001212,2]
[330943208,1719957385648,226.12254946,9.999e-05,2]
[330943209,1719957386970,374.40487559,9.999e-05,2]
[330943210,1719957394236,586.09482358,0.00013959,2]
[330943211,1719957408690,239.90689287,9.999e-05,2]
[330943212,1719957410992,818.39219299,9.999e-05,2]
[330943213,1719957419844,243.90157924,9.999e-05,2]
[330943214,1719957422518,3000.0,0.00013699,2]
[330943215,1719957434948,400.233803,0.00013699,2]
[330943216,1719957472548,724.71412204,9.999e-05,2]
[330943217,1719957476169,257.5787604,0.00013061,2]
[330943218,1719957478124,523.33913778,9.999e-05,2]
[330943219,1719957480998,286.70325749,9.999e-05,2]
[330943220,1719957483493,182.5470397,9.999e-05,2]
[330943221,1719957486977,291.4990288,9.999e-05,2]
[330943222,1719957497596,421.97314439,9.999e-05,2]
[330943223,1719957498764,540.33889832,9.999e-05,2]
[330943224,1719957503168,440.38203034,9.999e-05,2]
[330943226,1719957518799,181.89297014,0.0001212,2]
[330943227,1719957520052,247.45983593,0.0001212,2]
[330943228,1719957523617,523.33913778,0.0001212,2]
[330943229,1719957527988,182.5470397,0.0001212,2]
[330943230,1719957532553,286.05302452,0.0001212,2]
[330943231,1719957549839,2131.93815612,0.0001212,2]
[330943232,1719957563804,539.38096771,9.999e-05,2]
[330943235,1719957607062,15704.3098496,0.00013061,2]
[330943236,1719957615623,250.0,0.00013061,2]
[330943237,1719957621189,819.0999939,0.00013165,2]
[330943238,1719957629497,262.84750871,9.999e-05,2]
[330943239,1719957629533,839.71461649,9.999e-05,2]
[330943241,1719957637124,523.33913778,9.999e-05,2]
[330943242,1719957641701,238.05604747,9.999e-05,2]
[330943243,1719957645651,661.66867911,9.999e-05,2]
[330943244,1719957652128,523.33913778,9.999e-05,2]
[330943246,1719957674640,534.83476849,0.00013958,2]
[330943247,1719957707653,806.24931448,0.0001212,2]
[330943248,1719957721366,491.33508365,9.999e-05,2]
[330943251,1719957849654,1198.8828249,0.00013061,2]
[330943252,1719957863839,2131.93815612,0.0001212,2]
[330943254,1719957917206,450.627,0.00014001,2]
[330943258,1719957954261,181.79793415,0.00014001,2]
[330943259,1719957954920,487.2319956,0.00013958,2]
[330943260,1719957959012,154.86836189,0.00014001,2]
[330943261,1719957965450,200.116902,0.00013699,2]
[330943262,1719957975037,154.86836189,0.00014001,2]
[330943263,1719957975509,374.10478077,9.999e-05,2]
[330943265,1719958000813,181.79793415,0.00014,2]
[330943267,1719958022749,3000.0,0.00013699,2]
[330943269,1719958027494,163.69076019,0.00014,2]
[330943271,1719958050751,216.93171057,0.00014,2]
[330943275,1719958163881,-300.0,0.00014056,2]
[330943276,1719958163913,-352.26031336,0.00014057,2]
[330943277,1719958163953,-208.55968664,0.00014057,2]
[330943278,1719958163985,-443.70062672,0.00014057,2]
[330943279,1719958188876,-678.35072589,0.00014057,2]
[330943280,1719958188929,-678.35072589,0.00014057,2]
[330943319,1719958232433,-1157.55,0.00014057,2]
[330943321,1719958232443,-1929.36,0.00014057,2]
[330943323,1719958232452,-985.37,0.00014057,2]
[330943325,1719958232461,-500.0,0.00014057,2]
[330943327,1719958232471,-500.0,0.00014057,2]
[330943329,1719958232480,-500.0,0.00014057,2]
[330943331,1719958232490,-500.0,0.00014057,2]
[330943333,1719958232499,-123.3989024,0.00014057,2]
[330943335,1719958232510,-535.83607388,0.00014057,2]
[330943362,1719958235372,445.57956933,0.00013957,2]
[330943374,1719958238529,-5600.81502372,0.00014057,2]
[330943375,1719958238540,-500.0,0.00014057,2]
[330943376,1719958238549,-500.0,0.00014057,2]
[330943377,1719958238559,-500.0,0.00014057,2]
[330943378,1719958238568,-1978.24,0.00014057,2]
[330943379,1719958238578,-1341.96,0.00014057,2]
[330943380,1719958238587,-559.43,0.00014057,2]
[330943381,1719958238597,-1945.73614264,0.00014057,2]
[330943382,1719958238610,-108.29385736,0.00014057,2]
[330943383,1719958238619,-537.45,0.00014057,2]
[330943384,1719958238628,-1053.83,0.00014057,2]
[330943385,1719958238638,-500.0,0.00014057,2]
[330943386,1719958238648,-500.0,0.00014057,2]
[330943387,1719958238660,-500.0,0.00014057,2]
[330943388,1719958238670,-536.97426857,0.00014057,2]
[330943389,1719958238682,-407.14573143,0.00014057,2]
[330943390,1719958238819,-9732.23,0.00014057,2]
[330943391,1719958238830,-500.0,0.00014057,2]
[330943392,1719958238840,-1109.32,0.00014057,2]
[330943393,1719958238850,-500.0,0.00014058,2]
[330943394,1719958238860,-500.0,0.00014058,2]
[330943395,1719958238869,-500.0,0.00014058,2]
[330943396,1719958238879,-500.0,0.00014058,2]
[330943397,1719958238888,-500.0,0.00014058,2]
[330943398,1719958238898,-500.0,0.00014058,2]
[330943399,1719958238908,-500.0,0.00014058,2]
[330943400,1719958238918,-500.0,0.00014058,2]
[330943401,1719958238927,-498.1300528,0.00014058,2]
[330943402,1719958238936,-500.0,0.00014058,2]
[330943403,1719958238946,-500.0,0.00014058,2]
[330943404,1719958238955,-500.0,0.00014058,2]
[330943405,1719958238965,-500.0,0.00014058,2]
[330943406,1719958238975,-500.0,0.00014058,2]
[330943407,1719958238985,-500.0,0.00014058,2]
[330943408,1719958238996,-500.0,0.00014058,2]
[330943409,1719958239006,-500.0,0.00014058,2]
[330943410,1719958239016,-500.0,0.00014058,2]
[330943411,1719958239026,-500.0,0.00014058,2]
[330943412,1719958239037,-500.0,0.00014058,2]
[330943413,1719958239048,-500.0,0.00014058,2]
[330943414,1719958239059,-500.0,0.00014058,2]
[330943415,1719958239070,-500.0,0.00014058,2]
[330943416,1719958239081,-500.0,0.00014058,2]
[330943417,1719958239091,-500.0,0.00014058,2]
[330943418,1719958239102,-500.0,0.00014058,2]
[330943419,1719958239113,-500.0,0.00014058,2]
[330943420,1719958239123,-890.17,0.00014058,2]
[330943421,1719958239133,-500.0,0.00014058,2]
[330943422,1719958239144,-500.0,0.00014058,2]
[330943423,1719958239155,-500.0,0.00014058,2]
[330943424,1719958239165,-500.0,0.00014058,2]
[330943425,1719958239176,-500.0,0.00014058,2]
[330943426,1719958239187,-500.0,0.00014058,2]
[330943427,1719958239198,-500.0,0.00014058,2]
[330943428,1719958239208,-500.0,0.00014058,2]
[330943429,1719958239219,-500.0,0.00014058,2]
[330943430,1719958239229,-500.0,0.00014058,2]
[330943431,1719958239240,-500.0,0.00014058,2]
[330943432,1719958239251,-500.0,0.00014058,2]
[330943433,1719958239261,-306.06859678,0.00014058,2]
[330943434,1719958239271,-500.0,0.00014058,2]
[330943435,1719958239281,-500.0,0.00014058,2]
[330943436,1719958239291,-500.0,0.00014058,2]
[330943437,1719958239300,-500.0,0.00014058,2]
[330943438,1719958239311,-500.0,0.00014058,2]
[330943439,1719958239320,-500.0,0.00014058,2]
[330943440,1719958239330,-500.0,0.00014058,2]
[330943441,1719958239340,-218.86439233,0.00014058,2]
[330943442,1719958239350,-500.0,0.00014058,2]
[330943443,1719958239359,-500.0,0.00014058,2]
[330943444,1719958239369,-1128.78,0.00014058,2]
[330943445,1719958239379,-500.0,0.00014058,2]
[330943446,1719958239389,-549.11876076,0.00014058,2]
[330943447,1719958239399,-564.62,0.00014058,2]
[330943448,1719958239409,-500.0,0.00014058,2]
[330943449,1719958239419,-503.11874479,0.00014058,2]
[330943450,1719958239428,-500.0,0.00014058,2]
[330943451,1719958239438,-500.0,0.00014058,2]
[330943452,1719958239448,-500.0,0.00014058,2]
[330943453,1719958239458,-500.0,0.00014058,2]
[330943454,1719958239468,-500.0,0.00014058,2]
[330943455,1719958239478,-500.0,0.00014058,2]
[330943456,1719958239488,-500.0,0.00014058,2]
[330943457,1719958239499,-500.0,0.00014058,2]
[330943458,1719958239509,-500.0,0.00014058,2]
[330943459,1719958239519,-90.61476833,0.00014058,2]
[330943460,1719958239548,-409.38523167,0.00014058,2]
[330943461,1719958239560,-500.0,0.00014058,2]
[330943462,1719958239570,-500.0,0.00014058,2]
[330943463,1719958239580,-500.0,0.00014058,2]
[330943464,1719958239590,-500.0,0.00014058,2]
[330943465,1719958239600,-500.0,0.00014058,2]
[330943466,1719958239610,-500.0,0.00014058,2]
[330943467,1719958239620,-500.0,0.00014058,2]
[330943468,1719958239630,-500.0,0.00014058,2]
[330943469,1719958239640,-804.61,0.00014058,2]
[330943470,1719958239651,-500.0,0.00014058,2]
[330943471,1719958239666,-649.69,0.00014058,2]
[330943472,1719958239675,-998.41,0.00014058,2]
[330943473,1719958239685,-500.0,0.00014058,2]
[330943474,1719958239695,-500.0,0.00014058,2]
[330943475,1719958239705,-500.0,0.00014058,2]
[330943476,1719958239714,-500.0,0.00014058,2]
[330943477,1719958239724,-500.0,0.00014058,2]
[330943478,1719958239734,-105.89044104,0.00014058,2]
[330943488,1719958242100,-3602.64,0.00014057,2]
[330943489,1719958242111,-394.10955896,0.00014058,2]
[330943490,1719958242121,-506.54,0.00014058,2]
[330943491,1719958242131,-521.16828657,0.00014058,2]
[330943492,1719958242140,-500.0,0.00014058,2]
[330943493,1719958242149,-500.0,0.00014058,2]
[330943494,1719958242158,-500.0,0.00014058,2]
[330943495,1719958242168,-547.4,0.00014058,2]
[330943496,1719958242177,-500.0,0.00014058,2]
[330943497,1719958242186,-506.28796001,0.00014058,2]
[330943498,1719958242195,-500.0,0.00014058,2]
[330943499,1719958242205,-500.0,0.00014058,2]
[330943500,1719958242214,-500.0,0.00014058,2]
[330943501,1719958242223,-500.0,0.00014058,2]
[330943502,1719958242232,-500.0,0.00014058,2]
[330943503,1719958242241,-300.49208093,0.00014058,2]
[330943504,1719958242254,-230.16791907,0.00014058,2]
[330943505,1719958242263,-526.78,0.00014058,2]
[330943506,1719958242272,-504.10189876,0.00014058,2]
[330943507,1719958242281,-500.0,0.00014058,2]
[330943508,1719958242290,-500.0,0.00014058,2]
[330943509,1719958242300,-552.36,0.00014058,2]
[330943510,1719958242309,-500.0,0.00014058,2]
[330943511,1719958242318,-502.8,0.00014058,2]
[330943512,1719958242327,-500.0,0.00014058,2]
[330943513,1719958242336,-500.0,0.00014058,2]
[330943514,1719958242345,-500.0,0.00014058,2]
[330943515,1719958242354,-500.0,0.00014058,2]
[330943516,1719958242365,-567.73,0.00014058,2]
[330943517,1719958242374,-500.0,0.00014058,2]
[330943518,1719958242383,-500.0,0.00014058,2]
[330943519,1719958242393,-500.0,0.00014058,2]
[330943520,1719958242402,-500.74229188,0.00014058,2]
[330943521,1719958242411,-307.08854779,0.00014058,2]
[330943522,1719958242420,-500.0,0.00014058,2]
[330943523,1719958242429,-500.0,0.00014058,2]
[330943524,1719958242439,-593.58,0.00014058,2]
[330943525,1719958242448,-500.0,0.00014058,2]
[330943526,1719958242457,-501.58,0.00014058,2]
[330943527,1719958242466,-500.0,0.00014058,2]
[330943528,1719958242475,-500.0,0.00014058,2]
[330943529,1719958242484,-500.0,0.00014058,2]
[330943530,1719958242493,-500.0,0.00014058,2]
[330943531,1719958242503,-500.0,0.00014058,2]
[330943532,1719958242512,-500.0,0.00014058,2]
[330943533,1719958242521,-500.0,0.00014058,2]
[330943534,1719958242530,-500.0,0.00014058,2]
[330943535,1719958242539,-632.56,0.00014058,2]
[330943536,1719958242548,-500.0,0.00014058,2]
[330943537,1719958242557,-500.0,0.00014058,2]
[330943538,1719958242566,-500.0,0.00014058,2]
[330943539,1719958242575,-546.38,0.00014058,2]
[330943540,1719958242585,-1213.68,0.00014058,2]
[330943541,1719958242594,-500.0,0.00014058,2]
[330943542,1719958242603,-510.66732589,0.00014058,2]
[330943543,1719958242611,-500.0,0.00014058,2]
[330943544,1719958242620,-698.47,0.00014058,2]
[330943545,1719958242630,-566.89,0.00014058,2]
[330943546,1719958242639,-500.0,0.00014058,2]
[330943547,1719958242648,-584.51,0.00014058,2]
[330943548,1719958242660,-500.0,0.00014058,2]
[330943549,1719958242669,-500.0,0.00014058,2]
[330943550,1719958242679,-500.0,0.00014058,2]
[330943551,1719958242688,-500.0,0.00014058,2]
[330943552,1719958242697,-500.0,0.00014058,2]
[330943553,1719958242706,-500.0,0.00014058,2]
[330943554,1719958242715,-188.19,0.00014058,2]
[330943555,1719958242724,-2206.14635118,0.00014058,2]
[330943556,1719958242739,-1616.08364882,0.00014058,2]
[330943557,1719958242748,-618.39,0.00014058,2]
[330943558,1719958242758,-500.0,0.00014058,2]
[330943559,1719958242767,-500.0,0.00014058,2]
[330943560,1719958242777,-500.0,0.00014058,2]
[330943561,1719958242787,-500.0,0.00014058,2]
[330943562,1719958242796,-500.0,0.00014058,2]
[330943563,1719958242804,-500.0,0.00014058,2]
[330943564,1719958242813,-500.0,0.00014058,2]
[330943565,1719958242822,-500.0,0.00014058,2]
[330943566,1719958242832,-500.0,0.00014058,2]
[330943567,1719958242842,-500.0,0.00014058,2]
[330943568,1719958242851,-501.70789697,0.00014058,2]
[330943569,1719958242860,-500.0,0.00014058,2]
[330943570,1719958242869,-500.0,0.00014058,2]
[330943571,1719958242878,-621.59,0.00014058,2]
[330943572,1719958242887,-500.0,0.00014058,2]
[330943573,1719958242896,-500.0,0.00014058,2]
[330943574,1719958242905,-500.0,0.00014058,2]
[330943575,1719958242915,-500.0,0.00014058,2]
[330943576,1719958242925,-500.0,0.00014058,2]
[330943577,1719958242934,-826.51,0.00014058,2]
[330943578,1719958242943,-500.0,0.00014058,2]
[330943579,1719958242952,-542.50733357,0.00014058,2]
[330943580,1719958242961,-171.67752917,0.00014058,2]
[330943581,1719958242971,-500.0,0.00014058,2]
[330943582,1719958242980,-500.0,0.00014058,2]
[330943583,1719958242989,-516.58955884,0.00014058,2]
[330943584,1719958242998,-500.0,0.00014058,2]
[330943585,1719958243008,-500.0,0.00014058,2]
[330943586,1719958243018,-426.86121679,0.00014058,2]
[330943587,1719958243030,-500.0,0.00014058,2]
[330943588,1719958243039,-883.13,0.00014058,2]
[330943589,1719958243048,-500.0,0.00014058,2]
[330943590,1719958243059,-500.0,0.00014058,2]
[330943591,1719958243068,-500.0,0.00014058,2]
[330943592,1719958243077,-500.0,0.00014058,2]
[330943593,1719958243086,-500.0,0.00014058,2]
[330943594,1719958243095,-500.0,0.00014058,2]
[330943595,1719958243104,-500.0,0.00014059,2]
[330943596,1719958243113,-511.44837784,0.00014059,2]
[330943597,1719958243123,-2838.28,0.00014059,2]
[330943598,1719958243132,-538.06,0.00014059,2]
[330943599,1719958243142,-500.0,0.00014059,2]
[330943600,1719958243151,-335.02,0.00014059,2]
[330943602,1719958243160,-316.58535029,0.00014059,2]
[330943603,1719958243169,-500.0,0.00014059,2]
[330943604,1719958243178,-500.0,0.00014059,2]
[330943605,1719958243187,-500.0,0.00014059,2]
[330943606,1719958243197,-500.0,0.00014059,2]
[330943607,1719958243206,-500.0,0.00014059,2]
[330943609,1719958243332,-500.0,0.00014059,2]
[330943610,1719958243342,-517.44,0.00014059,2]
[330943611,1719958243352,-500.0,0.00014059,2]
[330943612,1719958243361,-517.44,0.00014059,2]
[330943613,1719958243371,-517.44,0.00014059,2]
[330943614,1719958243380,-517.44,0.00014059,2]
[330943615,1719958243390,-500.0,0.00014059,2]
[330943616,1719958243400,-500.0,0.00014059,2]
[330943617,1719958243409,-500.0,0.00014059,2]
[330943618,1719958243419,-563.14,0.00014059,2]
[330943619,1719958243428,-500.0,0.00014059,2]
[330943621,1719958243437,-500.0,0.00014059,2]
[330943623,1719958243447,-500.0,0.00014059,2]
[330943625,1719958243456,-500.0,0.00014059,2]
[330943627,1719958243465,-500.0,0.00014059,2]
[330943628,1719958243474,-500.0,0.00014059,2]
[330943629,1719958243483,-500.0,0.00014059,2]
[330943630,1719958243494,-500.0,0.00014059,2]
[330943631,1719958243505,-500.0,0.00014059,2]
[330943632,1719958243514,-500.0,0.00014059,2]
[330943633,1719958243523,-500.0,0.00014059,2]
[330943634,1719958243532,-427.02084294,0.00014059,2]
[330943639,1719958243776,-72.97915706,0.00014059,2]
[330943640,1719958243786,-500.0,0.00014059,2]
[330943641,1719958243796,-61.00115894,0.00014059,2]
[330943642,1719958243808,-438.99884106,0.00014059,2]
[330943643,1719958243818,-240.41970725,0.00014059,2]
[330943644,1719958243828,-289.71145169,0.00014059,2]
[330943655,1719958246626,-210.28854831,0.00014059,2]
[330943656,1719958246636,-500.0,0.00014059,2]
[330943657,1719958246646,-500.0,0.00014059,2]
[330943658,1719958246659,-500.0,0.00014059,2]
[330943659,1719958246671,-500.0,0.00014059,2]
[330943660,1719958246680,-500.0,0.00014059,2]
[330943661,1719958246689,-500.0,0.00014059,2]
[330943662,1719958246699,-500.0,0.00014059,2]
[330943663,1719958246710,-500.0,0.00014059,2]
[330943664,1719958246719,-513.53,0.00014059,2]
[330943665,1719958246730,-500.0,0.00014059,2]
[330943666,1719958246741,-500.0,0.00014059,2]